Cogmind - Beta 15 @@@ ROGUE MODE // 2025.06.22 @ 10:04:53 Player: pakman Result: Destroyed by Piercing Trap Performance ------------- Evolutions (0) 0 Regions Visited (3) 600 Robots Destroyed (41) 205 Value Destroyed (787) 787 Prototype IDs (0) 0 Alien Tech Used (0) 0 Bonus (0) 0 TOTAL SCORE: 1592 Bonus ------- None Cogmind --------- Core Integrity 0/250 Matter 163/300 Energy 246/250 System Corruption 0% Temperature Cool (2) Movement Walking (190) Ox1 Location -10/Subcaves Parts ------- > --- POWER (1) -------- Ion Engine > --- PROPULSION (2) --- Improved Aluminum Leg Improved Aluminum Leg > --- UTILITY (2) ------ Large Storage Unit > --- WEAPON (2) ------- Grenade Launcher > --- INVENTORY (15) --- Light Ion Engine Subdweller Power Source Light Treads Improved Aluminum Leg Improved Aluminum Leg Wheel Subdweller Monowheel Subdweller Optics Scrap Shield Subdweller Machine Gun Barrage Gun Multitool Flail Peak State ------------ > --- POWER ------------ Subdweller Power Source > --- PROPULSION ------- Improved Aluminum Leg Improved Aluminum Leg > --- UTILITY ---------- Large Storage Unit Seismic Detector > --- WEAPON ----------- Heavy EM Pulse Gun Heavy EM Pulse Gun > --- INVENTORY -------- Ion Engine Light Ion Engine Light Treads Improved Aluminum Leg Improved Aluminum Leg Wheel Subdweller Monowheel Subdweller Optics Scrap Shield Subdweller Machine Gun Subdweller Machine Gun Grenade Launcher Multitool Flail [Rating: 14] Favorites ----------- Power Ion Engine Engine Ion Engine Propulsion Improved Aluminum Leg Leg Improved Aluminum Leg Utility Seismic Detector Device Seismic Detector Storage Large Storage Unit Weapon Heavy EM Pulse Gun Energy Gun Heavy EM Pulse Gun Ballistic Gun Subdweller Machine Gun Launcher Grenade Launcher Impact Weapon Flail Build | -11 -10 -10 -10 ------- Run | Yrd Mat Min Sub Slots Evolved . | . . . . Power . | . . . . Propulsion . | . . . . Utility . | . . . . Weapon . | . . . . Parts Attached 18 | 2 12 2 2 Power 3 | . 2 . 1 Engine 3 | . 2 . 1 Core . | . . . . Reactor . | . . . . Propulsion 3 | . 3 . . Treads . | . . . . Leg 3 | . 3 . . Wheel . | . . . . Hover . | . . . . Flight . | . . . . Utility 3 | 1 1 1 . Device 2 | 1 . 1 . Storage 1 | . 1 . . Processor . | . . . . Hackware . | . . . . Protection . | . . . . Artifact . | . . . . Weapon 9 | 1 6 1 1 Energy Gun 6 | 1 4 1 . Energy Cannon . | . . . . Ballistic Gun 1 | . . . 1 Ballistic Cannon . | . . . . Launcher 1 | . 1 . . Special Weapon . | . . . . Impact Weapon 1 | . 1 . . Slashing Weapon . | . . . . Piercing Weapon . | . . . . Special Melee Weapon . | . . . . Unidentified Prototypes . | . . . . Parts Lost 7 | . 2 . 5 Power . | . . . . Propulsion . | . . . . Utility 2 | . 1 . 1 Weapon 5 | . 1 . 4 Highest Loss Streak 2 | . 2 . 1 To Critical Strikes . | . . . . Average Backups 11 | 5 7 8 13 Power 1 | 1 1 1 1 Propulsion 4 | 4 3 4 5 Utility 1 | . . . 1 Weapon 3 | . 2 3 3 Tool/Special . | . . . . Unused Backups 21 | 2 8 . 11 Power 2 | . 1 . 1 Propulsion 8 | . 4 . 4 Utility 5 | . 2 . 3 Weapon 5 | 2 1 . 2 Tool/Special 1 | . . . 1 Average Slot Usage (%) 98 | . 95 91 99 Engine 14 | . 14 14 14 Leg 28 | . 28 28 28 Device 12 | . 10 6 13 Storage 14 | . 14 14 14 Energy Gun 20 | . 19 25 20 Ballistic Gun 3 | . . . 5 Launcher 1 | . 1 2 1 Impact Weapon 1 | . 6 . . Peak Build Rating 14 | 7 12 12 14 Average Rating 12 | 6 9 11 13 On Entrance 9 | 6 7 11 12 Naked Turns . | . . . . Heaviest Build 33 | 15 32 32 33 Greatest Support 26 | 20 26 26 26 Greatest Overweight (x) 1 | . 1 1 1 Average Overweight (x) . | . . 1 1 Largest Inventory Capacity 15 | 8 15 15 15 Average Capacity 13 | 8 10 15 15 Most Carried 15 | 6 8 8 15 Average Carried 12 | 5 7 8 14 Final Capacity 15 | 8 15 15 15 Final Carried 14 | 6 8 8 14 Class Distribution -------------------- 100% | Mutant Dominant Class ---------------- Mutant | -10/Materials Mutant | -10/Mines Mutant | -10/Subcaves Resources | -11 -10 -10 -10 ----------- Run | Yrd Mat Min Sub Matter Collected 644 | 210 180 61 193 Remotely . | . . . . Salvage Created 852 | 56 327 94 375 Parts 77 | 7 24 17 29 Haulers Intercepted 1 | . 1 . . Recyclers Shooed . | . . . . Parts Field Recycled . | . . . . Retrieved Matter . | . . . . Parts Self-Destructed 12 | . . . 12 Prevented 4 | . . . 4 Kills | -11 -10 -10 -10 ------- Run | Yrd Mat Min Sub Combat Hostiles Destroyed 29 | . 11 3 15 Melee 1 | . 1 . . Guns 11 | . 3 . 8 AOE 14 | . 5 3 6 Classes Destroyed 10 | 1 5 1 3 Worker 3 | . 2 1 . Builder 1 | . . 1 . Tunneler 5 | 3 . 2 . Hauler 1 | . 1 . . Turret 1 | . . . 1 Watcher 1 | . 1 . . Swarmer 16 | . 6 3 7 Grunt 5 | . 5 . . Sentry 2 | . . . 2 Subdweller 6 | . . . 6 Best Kill Streak 5 | 2 4 5 5 Combat Bots Only 4 | . 4 3 4 Max Kills in Single Turn 2 | 1 2 2 2 Gunslinging . | . . . . Exploded 2 | . 2 1 2 Melee 1 | . 1 . . Uniques/NPCs Destroyed . | . . . . Combat | -11 -10 -10 -10 -------- Run | Yrd Mat Min Sub Hostile Shots Fired 111 | . 52 3 56 Missed 38 | . 17 2 19 Hits 73 | . 35 1 37 Projectile 73 | . 35 1 37 AOE 1 | . . . 1 Damage Taken 1149 | . 380 7 762 Core 271 | . 66 . 205 Absorbed by Shields . | . . . . Core Remaining (%) 100 | 100 . . . Volleys Fired 106 | 8 26 7 65 Largest 2 | 2 2 2 2 Hottest 100 | 100 100 90 90 Shots Fired 179 | 16 45 9 109 Gun 148 | 16 40 4 88 Cannon . | . . . . Launcher 31 | . 5 5 21 Special . | . . . . Kinetic 8 | . . . 8 Thermal 55 | 16 39 . . Explosive 31 | . 5 5 21 Electromagnetic 85 | . 1 4 80 Robot Hit Streak 8 | 2 7 6 8 Robot Miss Streak 7 | 7 5 . 3 Penetration Max . | . . . . Secondary Targets . | . . . . Shots Hit Robots 77 | 5 27 5 40 Core Hits 56 | 3 17 10 26 Critical Kills . | . . . . Critical Parts Destroyed . | . . . . Critical Strikes 5 | 1 3 . 1 Burn 4 | 1 3 . . Corrupt 1 | . . . 1 Melee Attacks 14 | . 14 . . Impact 14 | . 14 . . Slashing . | . . . . Piercing . | . . . . Sneak Attacks 2 | . 2 . . Combat Hostiles . | . . . . Follow-up Attacks . | . . . . Damage Inflicted 2585 | 61 890 394 1240 Guns 779 | 61 265 32 421 Cannons . | . . . . Explosions 1481 | . 300 362 819 Melee 325 | . 325 . . Ramming . | . . . . Kinetic 21 | . . . 21 Thermal 326 | 61 265 . . Explosive 1481 | . 300 362 819 Electromagnetic 432 | . . 32 400 Impact 325 | . 325 . . Slashing . | . . . . Piercing . | . . . . Highest Corruption . | . . . . Average Corruption . | . . . . Corruption Purged . | . . . . Corruption Blocked . | . . . . Overload Shots . | . . . . Overflow Damage 180 | . 123 54 3 Projectiles . | . . . . Explosions 57 | . . 54 3 Melee 123 | . 123 . . Knockbacks 1 | . 1 . . Impact 1 | . 1 . . Kinetic . | . . . . Secondary . | . . . . Self-Inflicted Damage 10 | . 10 . . Shots 1 | . 1 . . Rammed . | . . . . Targets Rammed . | . . . . Kicked . | . . . . Crushed . | . . . . Highest Temperature 265 | 81 265 30 . Average Temperature 78 | 36 98 18 . Received Heat Transfer 240 | . 150 . 90 Effects 3 | . 3 . . Interference 3 | . 3 . . Siege Activations . | . . . . Martial Activations . | . . . . Shielding Activations . | . . . . Robots Disrupted . | . . . . Combat Hostiles . | . . . . Robots Corrupted 4 | . 3 . 1 Combat Hostiles 3 | . 2 . 1 Parts Fried 4 | . 3 . 1 Impact Corruptions 6 | . 6 . . Robots Melted . | . . . . Combat Hostiles . | . . . . Parts Melted 3 | . 3 . . Heat Transferred 1258 | 259 999 . . Parts Sabotaged . | . . . . Parts Stolen . | . . . . Parts Stripped . | . . . . Power Chain Reactions . | . . . . Alert | -11 -10 -10 -10 ------- Run | Yrd Mat Min Sub Maximum Alert Level 1 | . 1 . . Low Security (%) 96 | 100 95 100 . Level 1 3 | . 4 . . Level 2 . | . . . . Level 3 . | . . . . Level 4 . | . . . . Level 5 . | . . . . High Security . | . . . . Max Security . | . . . . Peak Influence 208 | 5 208 142 . Initial 37 | . 3 37 . Average 95 | 2 99 119 . Influence Increases 1061 | 15 441 125 480 Destroy 0b10 Robot/C 480 | . 220 60 200 Destroy 0b10 Robot/NC 55 | 15 20 20 . Destroy Leader 74 | . 54 10 10 Successful Hack 4 | . 4 . . Disable Machine 15 | . 15 . . Destroy Structure 73 | . 38 35 . Lose Combat Pursuer 360 | . 90 . 270 Influence Decreases 1061 | 10 348 131 572 Entered New Map 111 | . 2 61 48 Time Decay 890 | 10 326 70 484 Lost Part 60 | . 20 . 40 Squads Dispatched 1 | . 1 . . Investigation . | . . . . Extermination . | . . . . Reinforcement 1 | . 1 . . Assault . | . . . . Garrison . | . . . . Intercept . | . . . . Searches Triggered . | . . . . Construction Impeded . | . . . . Haulers Reinforced . | . . . . Active Scanning Responses . | . . . . Cargo Convoy Interrupts . | . . . . Stealth | -11 -10 -10 -10 --------- Run | Yrd Mat Min Sub Distress Signals 3 | . 3 . . Communications Jammed . | . . . . Distress Signals . | . . . . Times Spotted 47 | . 21 3 23 Peak Tracking Total 5 | . 5 1 5 Tactical Retreats 6 | . 4 . 2 Traps | -11 -10 -10 -10 ------- Run | Yrd Mat Min Sub Traps Triggered 3 | . . . 3 Indirectly . | . . . . Trap Hack Attempts . | . . . . Triggered . | . . . . Disarmed . | . . . . Reprogrammed . | . . . . Reused . | . . . . Traps Extracted . | . . . . Installed . | . . . . Triggered . | . . . . Machines | -11 -10 -10 -10 ---------- Run | Yrd Mat Min Sub Machines Disabled 4 | . 1 . 3 Max in Single Turn 2 | . 1 . 2 Machines Repaired . | . . . . Machines Dismantled . | . . . . Machines Sabotaged . | . . . . Overloaded Fab Kills . | . . . . Hacking | -11 -10 -10 -10 --------- Run | Yrd Mat Min Sub Machines Accessed 2 | . 2 . . Terminals 2 | . 2 . . Fabricators . | . . . . Repair Stations . | . . . . Recycling Units . | . . . . Scanalyzers . | . . . . Garrison Access . | . . . . Total Hacks 6 | . 6 . . Successful 3 | . 3 . . Failed 3 | . 3 . . Catastrophic 1 | . 1 . . Database Lockouts . | . . . . Manual 2 | . 2 . . Terminals 6 | . 6 . . Fabricators . | . . . . Repair Stations . | . . . . Recycling Units . | . . . . Scanalyzers . | . . . . Garrison Access . | . . . . Terminal Hacks 1 | . 1 . . Zone Layout 1 | . 1 . . Fabricator Hacks . | . . . . Repair Station Hacks . | . . . . Recycling Unit Hacks . | . . . . Scanalyzer . | . . . . Garrison Access Hacks . | . . . . Unauthorized Hacks 2 | . 2 . . Terminals 2 | . 2 . . Botnet 2 | . 2 . . Fabricators . | . . . . Repair Stations . | . . . . Recycling Units . | . . . . Scanalyzers . | . . . . Garrison Access . | . . . . Data Cores Recovered . | . . . . Used . | . . . . Hacking Detections 2 | . 2 . . Full Trace Events . | . . . . Feedback Events . | . . . . Feedback Blocked . | . . . . Robot Schematics Acquired . | . . . . Robots Built . | . . . . Authchips . | . . . . Time . | . . . . Total Robot Build Rating . | . . . . Part Schematics Acquired . | . . . . Parts Built . | . . . . Authchips . | . . . . Time . | . . . . Total Part Build Rating . | . . . . Parts Repaired . | . . . . Time . | . . . . Parts Recycled . | . . . . Recycled Matter . | . . . . Retrieved Matter . | . . . . Retrieved Components . | . . . . Parts Scanalyzed . | . . . . Part Schematics Acquired . | . . . . Parts Damaged . | . . . . Bothacking | -11 -10 -10 -10 ------------ Run | Yrd Mat Min Sub Used RIF Installer . | . . . . Robots Hacked . | . . . . Non-combat . | . . . . Combat . | . . . . Robot Hacks Applied . | . . . . Relay Couplers Released . | . . . . Fabnet Peak Effective % . | . . . . Robots Rewired . | . . . . Allies Hacked . | . . . . Hacks Repelled . | . . . . Allies | -11 -10 -10 -10 -------- Run | Yrd Mat Min Sub Total Allies . | . . . . Largest Group . | . . . . Highest-Rated Group . | . . . . Highest-Rated Ally . | . . . . Total Orders . | . . . . Ally Attacks . | . . . . Total Damage . | . . . . Kills . | . . . . Allies Corrupted . | . . . . Allies Melted . | . . . . Intel | -11 -10 -10 -10 ------- Run | Yrd Mat Min Sub Active Infowar (turns) 3563 | 3 686 68 2806 Seismic 3563 | 3 686 68 2806 Robot Analysis Total . | . . . . Derelict Logs Recovered 2 | . . . 2 Drone Launches . | . . . . Drone Recoveries . | . . . . Exploration | -11 -10 -10 -10 ------------- Run | Yrd Mat Min Sub Turns Passed 3938 | 72 904 143 2819 Spaces Moved 1999 | 24 533 65 1377 Core . | . . . . Treads . | . . . . Legs 1999 | 24 533 65 1377 Wheels . | . . . . Hover . | . . . . Flight . | . . . . Fastest Speed 120 | 120 120 190 190 Average Speed 175 | 120 139 190 190 Slowest Speed 190 | 120 190 190 190 Overloaded Moves . | . . . . Propulsion Burnouts . | . . . . Robots Hopped . | . . . . Potential Cave-ins . | . . . . Cave-ins Triggered . | . . . . Exploration Rate (%) 42 | 3 73 13 81 Regions Visited 3 Branch Regions 2 Pre-discovered Areas 2 | . . . 2 Known Exits Taken . | . . . . Unknown Exits Taken 3 | 1 1 1 . Scrap Searched . | . . . . Spaces Dug 10 | . 5 . 5 Terrain Destroyed 130 | . 41 43 46 Melee 5 | . 5 . . Projectile . | . . . . AOE 125 | . 36 43 46 Terrain Rammed . | . . . . Walls Destroyed . | . . . . Machines Disabled . | . . . . Actions | -11 -10 -10 -10 --------- Run | Yrd Mat Min Sub Total 2220 | 50 628 74 1468 Wait 44 | 15 23 . 6 Move 1996 | 23 532 64 1377 Hop . | . . . . Pick Up 17 | 1 7 . 9 Fast Attach 5 | 1 3 1 . Attach 3 | . . . 3 Detach . | . . . . Swap 20 | 1 11 2 6 Drop 15 | 1 12 . 2 Fire 106 | 8 26 7 65 Melee 14 | . 14 . . Ram . | . . . . Kick . | . . . . Crush . | . . . . Escape Stasis . | . . . . Rewire . | . . . . Trap . | . . . . Miscellaneous . | . . . . Route ------- -11/Scrapyard -10/Materials (discovered 3 exits: [*Mat x2] / [*Min]) -10/Mines (discovered 2 exits: [*Mat] / [*Sub]) -10/Subcaves (discovered 3 exits: [*Mat x2] / [*Rec]) History --------- Turn | Location | Event 3 | -11/Scrapyard | Discovered new exit (range 2) 73 | -11/Scrapyard | Entered Materials 316 | -10/Materials | Build established: Mutant 320 | -10/Materials | Discovered new exit (range 11) 474 | -10/Materials | Discovered new exit (range 15) 880 | -10/Materials | Discovered new exit (range 15) 977 | -10/Materials | Entered Mines 981 | -10/Mines | Discovered new exit (range 13) 1035 | -10/Mines | Discovered new exit (range 6) 1120 | -10/Mines | Entered Subcaves 1418 | -10/Subcaves | A swath of the cavern ceiling suddenly collapsed 1730 | -10/Subcaves | Discovered new exit (range 12) 2200 | -10/Subcaves | Core integrity fell below 50% 2243 | -10/Subcaves | Shifting Twisted Machinery released Sub. Power Source 2247 | -10/Subcaves | Shifting Twisted Machinery released Flamer 2432 | -10/Subcaves | A swath of the cavern ceiling suddenly collapsed 2711 | -10/Subcaves | Discovered new exit (range 13) 2979 | -10/Subcaves | Learned location of Zion (-6) 2979 | -10/Subcaves | Met a Zionite searching for "candidates" 3035 | -10/Subcaves | Discovered new exit (range 10) 3046 | -10/Subcaves | Shifting Twisted Machinery released Barrage Gun 3053 | -10/Subcaves | Shifting Twisted Machinery released Sub. Machine Gun 3821 | -10/Subcaves | Learned Materials trap positions 3868 | -10/Subcaves | Core integrity fell below 20% 3939 | -10/Subcaves | Destroyed by Piercing Trap Last Messages --------------- 03390_ G5-EKO(u) tweaks Twisted Machinery. 03494_ KX-FIE(u) tweaks Twisted Machinery. 03583_ KX-FIE(u) builds Twisted Machinery. 03683_ Hvy. EM Pulse Gun destroyed. 03708_ 6T-S5B(R) destroyed. 03718_ Destroyed Scrap Shield. 03720_ 3Z-MYI(R) destroyed. 03727_ The unstable cave ceiling collapses. 03821_ Acquired derelict log, extracted data. Data stored: Materials trap records. 03867_ Triggered Piercing Trap. 03867_ Spikes shoot up from the floor. 03867_ Critical hit (Impale). 03867_ Sub. Machine Gun destroyed. 03926_ Triggered Shrapnel Trap. 03926_ An expanding cloud of shrapnel blasts out in all directions. 03926_ Seismic Detector destroyed. 03939_ Triggered Piercing Trap. 03939_ Spikes shoot up from the floor. 03939_ Critical hit (Impale). Map ----- +----------------------------------------------------+ | | | | | | | | | | | ?????????????????????????????????????????????????? | | ?????????????????????????????????????????????????? | | ?????????????????????????????????????????????????? | | ?????????????????????????????????????????#?"?????? | | ????????????????????????????????????????#"" "#???? | | ????????????????????????????????????????#" " ???? | | ????????????????????????????????????????# " "???? | | ????????????????????????????????????????#""" "???? | | ????????????????????????????????????????#" " #???? | | ????????????????????????????????????????# ""##??? | | ????????????????????????????????????????# " " #### | | ?????????????????????????????????????????#"" # | | ?????????????????????????????????????????#" | | ?????????????????????????????????????????## ## | | ?????????????????????????????????###?##########" | | ????????????????###??###??????#### ### ## ### | | ??????????????? # ## #?##### | | ??????????????? ##;;;; | | ??????????????????# ^ ^ ^ ;# #### | | ??????????????????????## ;####??### ##### | | ???????????????????????##@ ; #??????###???# | | ????????????????????????###;;;;;;##????????????## | | ??????????????????????????########???????????#### | | ????????????????????????????????????????????## | | ????????????????????????????????????????????# | | ????????????????????????????????????????????# | | ????????????????????????????????????????????# | | ????????????????????????????????????????????# | | ????????????????????????????????????????????# | | ????????????????????????????????????????????#### | | ??????? ???????????????????????????????????????## | | ??????? ???????????????????????????????????????# | | ???????# ???????????????????????????????????????# | | ????#??# ?????????????????????????????????????## | | ????? ## ####????????????????????????????????## | | ?????? #####????##?????????????????????# | | ??????? ##??# #####????????????????## | | ???????? ### ?????????????????# | | ????????? ???????????????????### | | ??????????# #???????????############ | | ???????????# #???????????## ## | | ????????#### #?????###???# | | ???????## ### ####?## ##### | | ?????### ### # ### # # ## ### | | ?????# ### ## ### ##?## | +----------------------------------------------------+ Best States ------------- Heat Dissipation 25 Energy Generation 15 Energy Capacity 250 Matter Stores 300 Matter Capacity 300 Sight Range 16 Terrain Scan Density 10 Evasion (%) 55 Item Schematics ----------------- None Robot Schematics ------------------ None Fabricated ------------ Nothing Repaired ---------- Nothing Alien Tech Used ----------------- None Achievements -------------- None Challenges ------------ None Game ------ Seed ConcussiveFusionReplica Manual? 0 Play Time 00:25:23 Cumulative 92.1 hours Start 2025.06.22 @ 09:40:13 End 2025.06.22 @ 10:04:53 Sessions 1 Manual Loads 0 Difficulty Rogue Special Mode None Game No. 93 Rogue 93 Adventurer 0 Explorer 0 Win Type - Total 0 Types 0/0/0/0/0/0/0/0/0/0 Lore% 49 Gallery% 35 Achievement% 32 Wizard Run 0 Options --------- Layout 0 ASCII 0 Keyboard 1 Movement Numpad Keybinds 0 Fullscreen 2 Font 18/SmallcapsGlow Map View 76x50 Zoom Use 0% Tactical HUD 1 Map Filters NONE Filters NONE Steam 1 RUN: 87930ac7-6f11-4f1f-b62e-32dcd82c9a4b